Cogmind - Beta 17.1 @@@ ROGUE MODE // 2026.08.30 @ 10:42:09 // Winter2019/RPGLIKE Player: obl-vn Result: Self-destructed Performance ------------- Evolutions (2) 1000 Regions Visited (8) 1600 Robots Destroyed (29) 145 Value Destroyed (861) 861 Prototype IDs (26) 520 Alien Tech Used (0) 0 Bonus (193) 193 TOTAL SCORE: 4319 Bonus ------- Aligned with FarCom 300 Friendly Fire -107 Cogmind --------- Core Integrity 494/1000 Matter 274/300 Energy 160/160 System Corruption 1% Temperature Cool (10) Movement Hovering (110) Ox1 Location -8/Scraptown Parts ------- > --- POWER (1) -------- Light Nuclear Core > --- PROPULSION (2) --- Aerolev Unit > --- UTILITY (1) ------ Recoil Stabilizer > --- WEAPON (2) ------- EM Pulse Cannon Missile Launcher > --- INVENTORY (1) ---- Light Cannon Peak State ------------ > --- POWER ------------ Light Nuclear Core > --- PROPULSION ------- Aerolev Unit Aerolev Unit > --- UTILITY ---------- Recoil Stabilizer > --- WEAPON ----------- EM Pulse Cannon Missile Launcher > --- INVENTORY -------- Light Cannon [Rating: 20] Favorites ----------- Power Light Nuclear Core Engine Light Ion Engine Power Core Light Nuclear Core Propulsion Flight Unit Wheel Wheel Hover Unit Aerolev Unit Flight Unit Flight Unit Utility Recoil Stabilizer Device Recoil Stabilizer Processor Transport Network Coupler Weapon Light Cannon Energy Gun Medium Laser Energy Cannon EM Pulse Cannon Ballistic Gun Assault Rifle Ballistic Cannon Light Cannon Launcher Missile Launcher Build | -11 -10 -10 -10 -9 -8 -8 -8 -8 ------- Run | Yrd Mat Min Exi Min Mat Sto Rec Scr Slots Evolved 2 | 1 1 . . . . . . . Power . | . . . . . . . . . Propulsion 1 | . 1 . . . . . . . Utility . | . . . . . . . . . Weapon 1 | 1 . . . . . . . . Parts Attached 19 | 4 7 2 . 2 4 . . . Power 4 | 1 1 . . 1 1 . . . Engine 2 | 1 . . . 1 . . . . Core 2 | . 1 . . . 1 . . . Reactor . | . . . . . . . . . Propulsion 5 | 1 2 . . . 2 . . . Treads . | . . . . . . . . . Leg . | . . . . . . . . . Wheel 1 | 1 . . . . . . . . Hover 2 | . . . . . 2 . . . Flight 2 | . 2 . . . . . . . Utility 3 | . 1 2 . . . . . . Device 2 | . . 2 . . . . . . Storage . | . . . . . . . . . Processor 1 | . 1 . . . . . . . Hackware . | . . . . . . . . . Protection . | . . . . . . . . . Artifact . | . . . . . . . . . Weapon 7 | 2 3 . . 1 1 . . . Energy Gun 1 | 1 . . . . . . . . Energy Cannon 1 | . . . . . 1 . . . Ballistic Gun 1 | 1 . . . . . . . . Ballistic Cannon 2 | . 2 . . . . . . . Launcher 2 | . 1 . . 1 . . . . Special Weapon . | . . . . . . . . . Impact Weapon . | . . . . . . . . . Slashing Weapon . | . . . . . . . . . Piercing Weapon . | . . . . . . . . . Special Melee Weapon . | . . . . . . . . . Unidentified Prototypes 1 | . . . . . 1 . . . Parts Lost . | . . . . . . . . . Power . | . . . . . . . . . Propulsion . | . . . . . . . . . Utility . | . . . . . . . . . Weapon . | . . . . . . . . . Highest Loss Streak . | . . . . . . . . . To Critical Strikes . | . . . . . . . . . Average Backups . | . . 1 1 1 1 1 1 1 Power . | . . . . . . . . . Propulsion . | . . . . . . . . . Utility . | . . . . . . . . . Weapon . | . . 1 1 1 1 1 1 1 Tool/Special . | . . . . . . . . . Unused Backups . | . . . . . . . . . Power . | . . . . . . . . . Propulsion . | . . . . . . . . . Utility . | . . . . . . . . . Weapon . | . . . . . . . . . Tool/Special . | . . . . . . . . . Average Slot Usage (%) 97 | . 93 100 100 96 96 100 100 100 Engine 2 | . 5 . . . . . . . Core 13 | . 11 16 16 12 13 16 16 16 Wheel 2 | . 6 . . . . . . . Hover 13 | . . . . . 30 33 33 33 Flight 15 | . 22 33 33 33 3 . . . Device 9 | . . 14 16 16 16 16 16 16 Processor 4 | . 10 1 . . . . . . Energy Cannon 6 | . . . . . 11 . 14 16 Ballistic Cannon 20 | . 32 33 33 29 16 16 7 . Launcher 6 | . . . . 3 4 16 10 16 Peak Build Rating 20 | 4 8 10 10 12 18 18 20 20 Average Rating 12 | 2 6 8 10 9 17 18 19 20 On Entrance 10 | . 4 8 10 10 9 18 18 20 Avg Prop Armor Cover (%) . | . . . . . . . . . Naked Turns . | . . . . . . . . . Heaviest Build 18 | 7 11 12 12 12 15 15 18 18 Greatest Support 21 | 10 13 13 13 13 21 21 21 21 Greatest Overweight (x) 1 | . 1 . . . . . . . Average Overweight (x) . | . . . . . . . . . Largest Inventory Capacity 1 | . 1 1 1 1 1 1 1 1 Average Capacity . | . . 1 1 1 1 1 1 1 Most Carried 1 | . 1 1 1 1 1 1 1 1 Average Carried . | . . 1 1 1 . 1 1 1 Final Capacity 1 | . 1 1 1 1 1 1 1 1 Final Carried 1 | . 1 1 1 1 1 1 1 1 Class Distribution -------------------- 100% | Mutant Dominant Class ---------------- Mutant | -10/Materials Mutant | -10/Mines Mutant | -10/Exiles Mutant | -9/Mines Mutant | -8/Materials Mutant | -8/Storage Mutant | -8/Recycling Mutant | -8/Scraptown Resources | -11 -10 -10 -10 -9 -8 -8 -8 -8 ----------- Run | Yrd Mat Min Exi Min Mat Sto Rec Scr Matter Collected 847 | 221 220 76 . 208 . . 122 . Remotely . | . . . . . . . . . Salvage Created 628 | . 321 89 . 123 11 . 84 . Parts 50 | . 19 2 . 14 3 . 12 . Haulers Intercepted 2 | . 2 . . . . . . . Recyclers Shooed 1 | . . . . . 1 . . . Parts Field Recycled . | . . . . . . . . . Retrieved Matter . | . . . . . . . . . Parts Self-Destructed . | . . . . . . . . . Prevented . | . . . . . . . . . Parts Restored . | . . . . . . . . . Kills | -11 -10 -10 -10 -9 -8 -8 -8 -8 ------- Run | Yrd Mat Min Exi Min Mat Sto Rec Scr Combat Hostiles Destroyed 26 | . 10 2 . 8 3 . 3 . Cannons 16 | . 4 2 . 8 . . 2 . AOE 9 | . 6 . . . 3 . . . Classes Destroyed 5 | . 4 . . . . . 1 . Hauler 2 | . 2 . . . . . . . Recycler 1 | . 1 . . . . . . . Swarmer 12 | . 6 . . 3 3 . . . Grunt 11 | . 4 2 . 5 . . . . Sentry 3 | . . . . . . . 3 . Best Kill Streak 5 | . 3 1 . 5 3 . 2 . Combat Bots Only 5 | . 3 1 . 5 3 . 2 . Max Kills in Single Turn 3 | . 2 1 . 1 3 . 1 . Gunslinging . | . . . . . . . . . Exploded 3 | . 2 . . . 3 . . . Melee . | . . . . . . . . . Uniques/NPCs Destroyed . | . . . . . . . . . Combat | -11 -10 -10 -10 -9 -8 -8 -8 -8 -------- Run | Yrd Mat Min Exi Min Mat Sto Rec Scr Hostile Shots Fired 134 | . 14 6 . 29 4 2 14 65 Missed 52 | . 2 3 . 9 3 . 2 33 Hits 82 | . 12 3 . 20 1 2 12 32 Melee 3 | . . . . . . . . 3 Projectile 79 | . 12 3 . 20 1 2 12 29 Critical Strikes 2 | . . . . . . . . 2 Damage Taken 1168 | . 181 43 . 218 61 28 178 459 Core 950 | . 146 33 . 174 48 22 152 375 Absorbed by Shields . | . . . . . . . . . Redirected to Core 748 | . 120 33 . 142 48 22 92 291 Core Remaining (%) 96 | 100 . . . 92 . . . . Volleys Fired 113 | . 66 10 . 20 2 . 11 4 Largest 2 | . 2 2 . 2 1 . 1 1 Hottest 70 | . 70 60 . 60 63 . 63 63 Shots Fired 155 | . 79 20 . 39 2 . 11 4 Gun 4 | . 4 . . . . . . . Cannon 140 | . 70 20 . 38 1 . 9 2 Launcher 11 | . 5 . . 1 1 . 2 2 Special . | . . . . . . . . . Kinetic 130 | . 72 20 . 38 . . . . Thermal 2 | . 2 . . . . . . . Explosive 11 | . 5 . . 1 1 . 2 2 Electromagnetic 12 | . . . . . 1 . 9 2 Robot Hit Streak 12 | . 10 5 . 9 3 . 12 . Robot Miss Streak 4 | . 4 2 . 4 . . . . Penetration Max . | . . . . . . . . . Secondary Targets . | . . . . . . . . . Shots Hit Robots 64 | . 17 13 . 23 2 . 9 . Core Hits 35 | . 15 4 . 10 3 . 3 . Critical Kills . | . . . . . . . . . Critical Parts Destroyed . | . . . . . . . . . Critical Strikes 1 | . . 1 . . . . . . Blast 1 | . . 1 . . . . . . Melee Attacks . | . . . . . . . . . Impact . | . . . . . . . . . Slashing . | . . . . . . . . . Piercing . | . . . . . . . . . Sneak Attacks . | . . . . . . . . . Combat Hostiles . | . . . . . . . . . Follow-up Attacks . | . . . . . . . . . Damage Inflicted 1782 | . 594 253 . 429 208 . 250 48 Guns 40 | . 40 . . . . . . . Cannons 1190 | . 286 253 . 429 25 . 197 . Explosions 552 | . 268 . . . 183 . 53 48 Melee . | . . . . . . . . . Ramming . | . . . . . . . . . Kinetic 995 | . 313 253 . 429 . . . . Thermal 13 | . 13 . . . . . . . Explosive 552 | . 268 . . . 183 . 53 48 Electromagnetic 222 | . . . . . 25 . 197 . Impact . | . . . . . . . . . Slashing . | . . . . . . . . . Piercing . | . . . . . . . . . Highest Corruption 1 | . . . . . . . . 1 Average Corruption 1 | . . . . . . . . 1 Corruption Purged . | . . . . . . . . . Corruption Blocked . | . . . . . . . . . Overload Shots . | . . . . . . . . . Overflow Damage 7 | . . . . 7 . . . . Projectiles 7 | . . . . 7 . . . . Explosions . | . . . . . . . . . Melee . | . . . . . . . . . Knockbacks 14 | . 3 5 . 6 . . . . Impact . | . . . . . . . . . Kinetic 13 | . 3 5 . 5 . . . . Secondary 1 | . . . . 1 . . . . Self-Inflicted Damage 109 | . 55 . . . 54 . . . Shots 4 | . 3 . . . 1 . . . Rammed . | . . . . . . . . . Targets Rammed . | . . . . . . . . . Kicked . | . . . . . . . . . Crushed . | . . . . . . . . . Highest Temperature 182 | . 5 9 . 6 30 . 182 42 Average Temperature 45 | . 2 5 . 4 12 . 94 14 Received Heat Transfer 415 | . 51 27 . 87 . 9 63 178 Siege Activations . | . . . . . . . . . Martial Activations . | . . . . . . . . . Shielding Activations . | . . . . . . . . . Robots Disrupted . | . . . . . . . . . Combat Hostiles . | . . . . . . . . . Robots Corrupted 1 | . . . . . . . 1 . Combat Hostiles 1 | . . . . . . . 1 . Parts Fried 4 | . . . . . . . 4 . Impact Corruptions . | . . . . . . . . . Robots Melted . | . . . . . . . . . Combat Hostiles . | . . . . . . . . . Parts Melted . | . . . . . . . . . Heat Transferred 37 | . 37 . . . . . . . Parts Sabotaged . | . . . . . . . . . Parts Stolen 1 | . . . . . . . . 1 Parts Stripped . | . . . . . . . . . Power Chain Reactions . | . . . . . . . . . Alert | -11 -10 -10 -10 -9 -8 -8 -8 -8 ------- Run | Yrd Mat Min Exi Min Mat Sto Rec Scr Maximum Alert Level 1 | . 1 . . . . . . . Low Security (%) 62 | 100 33 100 . 100 100 100 100 . Level 1 37 | . 66 . . . . . . . Level 2 . | . . . . . . . . . Level 3 . | . . . . . . . . . Level 4 . | . . . . . . . . . Level 5 . | . . . . . . . . . High Security . | . . . . . . . . . Max Security . | . . . . . . . . . Peak Influence 360 | . 360 96 . 150 115 44 55 . Initial 66 | . . 66 . . 44 44 13 . Average 145 | . 219 67 . 104 36 39 20 . Influence Increases 1030 | . 559 50 . 205 111 . 105 . Destroy 0b10 Robot/C 520 | . 200 40 . 160 60 . 60 . Destroy 0b10 Robot/NC 15 | . 15 . . . . . . . Destroy Leader 94 | . 44 10 . 30 10 . . . Successful Hack 34 | . 34 . . . . . . . Disable Machine 255 | . 240 . . . . . 15 . Destroy Structure 82 | . 26 . . 15 11 . 30 . Lose Combat Pursuer 30 | . . . . . 30 . . . Influence Decreases 1030 | . 389 184 36 90 121 71 114 25 Entered New Map 318 | . . 104 36 . 71 61 21 25 Time Decay 712 | . 389 80 . 90 50 10 93 . Squads Dispatched 2 | . 1 1 . . . . . . Investigation 1 | . . 1 . . . . . . Extermination . | . . . . . . . . . Reinforcement 1 | . 1 . . . . . . . Assault . | . . . . . . . . . Garrison . | . . . . . . . . . Intercept . | . . . . . . . . . Searches Triggered . | . . . . . . . . . Construction Impeded . | . . . . . . . . . Haulers Reinforced . | . . . . . . . . . Active Scanning Responses . | . . . . . . . . . Cargo Convoy Interrupts . | . . . . . . . . . Stealth | -11 -10 -10 -10 -9 -8 -8 -8 -8 --------- Run | Yrd Mat Min Exi Min Mat Sto Rec Scr Distress Signals 4 | . 3 . . . 1 . . . Communications Jammed . | . . . . . . . . . Distress Signals . | . . . . . . . . . Times Spotted 66 | . 18 1 . 8 8 1 3 27 Peak Tracking Total 29 | . 4 1 . 3 8 1 2 29 Tactical Retreats 6 | . . . . . 1 . . 5 Traps | -11 -10 -10 -10 -9 -8 -8 -8 -8 ------- Run | Yrd Mat Min Exi Min Mat Sto Rec Scr Traps Triggered 2 | . 2 . . . . . . . Indirectly 2 | . 2 . . . . . . . Trap Hack Attempts . | . . . . . . . . . Triggered . | . . . . . . . . . Disarmed . | . . . . . . . . . Reprogrammed . | . . . . . . . . . Reused . | . . . . . . . . . Traps Extracted . | . . . . . . . . . Installed . | . . . . . . . . . Triggered . | . . . . . . . . . Machines | -11 -10 -10 -10 -9 -8 -8 -8 -8 ---------- Run | Yrd Mat Min Exi Min Mat Sto Rec Scr Machines Disabled 25 | . 16 1 . . . . 1 7 Max in Single Turn 4 | . 2 1 . . . . 1 4 Machines Repaired . | . . . . . . . . . Machines Dismantled . | . . . . . . . . . Machines Sabotaged . | . . . . . . . . . Overloaded Fab Kills . | . . . . . . . . . Hacking | -11 -10 -10 -10 -9 -8 -8 -8 -8 --------- Run | Yrd Mat Min Exi Min Mat Sto Rec Scr Machines Accessed 9 | . 6 1 2 . . . . . Terminals 5 | . 5 . . . . . . . Fabricators . | . . . . . . . . . Repair Stations . | . . . . . . . . . Recycling Units 1 | . 1 . . . . . . . Scanalyzers . | . . . . . . . . . Garrison Access . | . . . . . . . . . Total Hacks 27 | . 24 1 2 . . . . . Successful 17 | . 14 1 2 . . . . . Failed 10 | . 10 . . . . . . . Catastrophic 1 | . 1 . . . . . . . Database Lockouts . | . . . . . . . . . Manual 18 | . 16 . 1 . . 1 . . Terminals 22 | . 22 . . . . . . . Fabricators . | . . . . . . . . . Repair Stations . | . . . . . . . . . Recycling Units 2 | . 2 . . . . . . . Scanalyzers . | . . . . . . . . . Garrison Access . | . . . . . . . . . Terminal Hacks 8 | . 5 1 2 . . . . . Record 1 | . . . 1 . . . . . Robot Analysis 1 | . 1 . . . . . . . Prototype ID Bank 1 | . 1 . . . . . . . Open Door 1 | . . 1 . . . . . . Locate Traps 3 | . 3 . . . . . . . Proto ID Catalog 1 | . . . 1 . . . . . Fabricator Hacks . | . . . . . . . . . Repair Station Hacks . | . . . . . . . . . Recycling Unit Hacks 2 | . 2 . . . . . . . Process 1 | . 1 . . . . . . . Retrieve Matter 1 | . 1 . . . . . . . Scanalyzer . | . . . . . . . . . Garrison Access Hacks . | . . . . . . . . . Unauthorized Hacks 7 | . 7 . . . . . . . Terminals 7 | . 7 . . . . . . . Botnet 1 | . 1 . . . . . . . Operators 1 | . 1 . . . . . . . Skim 5 | . 5 . . . . . . . Fabricators . | . . . . . . . . . Repair Stations . | . . . . . . . . . Recycling Units . | . . . . . . . . . Scanalyzers . | . . . . . . . . . Garrison Access . | . . . . . . . . . Data Cores Recovered . | . . . . . . . . . Used . | . . . . . . . . . Hacking Detections 3 | . 3 . . . . . . . Full Trace Events . | . . . . . . . . . Feedback Events . | . . . . . . . . . Feedback Blocked . | . . . . . . . . . Robot Schematics Acquired . | . . . . . . . . . Robots Built . | . . . . . . . . . Authchips . | . . . . . . . . . Time . | . . . . . . . . . Total Robot Build Rating . | . . . . . . . . . Part Schematics Acquired . | . . . . . . . . . Parts Built . | . . . . . . . . . Authchips . | . . . . . . . . . Time . | . . . . . . . . . Total Part Build Rating . | . . . . . . . . . Part Studies Acquired . | . . . . . . . . . Parts Repaired . | . . . . . . . . . Time . | . . . . . . . . . Parts Recycled . | . . . . . . . . . Recycled Matter 191 | . 191 . . . . . . . Retrieved Matter 326 | . 326 . . . . . . . Retrieved Components . | . . . . . . . . . Parts Scanalyzed . | . . . . . . . . . Part Schematics Acquired . | . . . . . . . . . Parts Damaged . | . . . . . . . . . Bothacking | -11 -10 -10 -10 -9 -8 -8 -8 -8 ------------ Run | Yrd Mat Min Exi Min Mat Sto Rec Scr Used RIF Installer . | . . . . . . . . . Robots Hacked . | . . . . . . . . . Non-combat . | . . . . . . . . . Combat . | . . . . . . . . . Robot Hacks Applied . | . . . . . . . . . Relay Couplers Released . | . . . . . . . . . Fabnet Peak Effective % . | . . . . . . . . . Robots Rewired . | . . . . . . . . . Allies Hacked . | . . . . . . . . . Hacks Repelled . | . . . . . . . . . Allies | -11 -10 -10 -10 -9 -8 -8 -8 -8 -------- Run | Yrd Mat Min Exi Min Mat Sto Rec Scr Total Allies . | . . . . . . . . . Largest Group . | . . . . . . . . . Highest-Rated Group . | . . . . . . . . . Highest-Rated Ally . | . . . . . . . . . Total Orders . | . . . . . . . . . Ally Attacks . | . . . . . . . . . Total Damage . | . . . . . . . . . Kills . | . . . . . . . . . Allies Corrupted . | . . . . . . . . . Allies Melted . | . . . . . . . . . Intel | -11 -10 -10 -10 -9 -8 -8 -8 -8 ------- Run | Yrd Mat Min Exi Min Mat Sto Rec Scr Active Infowar (turns) 808 | . 657 151 . . . . . . Sensors 142 | . . 142 . . . . . . T.N.C. 666 | . 657 9 . . . . . . Robot Analysis Total 1 | . 1 . . . . . . . Derelict Logs Recovered 2 | . . . . 2 . . . . Drone Launches . | . . . . . . . . . Drone Recoveries . | . . . . . . . . . Exploration | -11 -10 -10 -10 -9 -8 -8 -8 -8 ------------- Run | Yrd Mat Min Exi Min Mat Sto Rec Scr Turns Passed 2450 | 38 964 163 78 186 109 32 236 644 Spaces Moved 2813 | 43 412 346 210 304 207 69 383 839 Core 16 | 16 . . . . . . . . Treads . | . . . . . . . . . Legs . | . . . . . . . . . Wheels 265 | 27 238 . . . . . . . Hover 1490 | . . . . . 199 69 383 839 Flight 1042 | . 174 346 210 304 8 . . . Fastest Speed 37 | 50 37 37 37 37 37 46 46 46 Average Speed 45 | 68 62 37 37 37 45 46 46 46 Slowest Speed 95 | 80 95 37 37 37 50 46 46 46 Overloaded Moves . | . . . . . . . . . Propulsion Burnouts . | . . . . . . . . . Robots Hopped 3 | . . 3 . . . . . . Potential Cave-ins . | . . . . . . . . . Cave-ins Triggered . | . . . . . . . . . Exploration Rate (%) 52 | 3 76 70 59 58 28 23 93 62 Regions Visited 8 Branch Regions 6 Pre-discovered Areas 2 | . . . 1 1 . . . . Known Exits Taken 2 | . . . . . 1 1 . . Unknown Exits Taken 6 | 1 1 1 1 1 . . 1 . Scrap Searched 6 | . . 1 . 2 . . . 3 Spaces Dug . | . . . . . . . . . Terrain Destroyed 121 | . 34 . . 17 20 . 33 17 Melee . | . . . . . . . . . Projectile . | . . . . . . . . . AOE 121 | . 34 . . 17 20 . 33 17 Terrain Rammed . | . . . . . . . . . Walls Destroyed . | . . . . . . . . . Machines Disabled . | . . . . . . . . . Actions | -11 -10 -10 -10 -9 -8 -8 -8 -8 --------- Run | Yrd Mat Min Exi Min Mat Sto Rec Scr Total 3795 | 49 1036 358 209 337 217 68 429 1092 Wait 816 | 3 537 . . . . . 27 249 Move 2799 | 42 411 339 209 303 206 68 382 839 Hop 3 | . . 3 . . . . . . Pick Up 3 | . 1 1 . . 1 . . . Fast Attach 15 | 4 5 2 . 1 3 . . . Attach . | . . . . . . . . . Detach . | . . . . . . . . . Swap 10 | . 5 . . 1 2 . 2 . Drop 12 | . 4 3 . 2 3 . . . Fire 113 | . 66 10 . 20 2 . 11 4 Melee . | . . . . . . . . . Ram . | . . . . . . . . . Kick . | . . . . . . . . . Crush . | . . . . . . . . . Escape Stasis . | . . . . . . . . . Rewire . | . . . . . . . . . Trap . | . . . . . . . . . Miscellaneous 24 | . 7 . . 10 . . 7 . Route ------- -11/Scrapyard -10/Materials (discovered 6 exits: *Mat x3 / *Min x2 / Sub) -10/Mines -10/Exiles -9/Mines -8/Materials (discovered 5 exits: *Fac x3 / *Sto x2) -8/Storage (discovered 2 exits: Fac / *Rec) -8/Recycling (discovered 2 exits: [*Fac] / [*Scr]) -8/Scraptown History --------- Turn | Location | Event 7 | -11/Scrapyard | Discovered new exit (range 15) 20 | -11/Scrapyard | Upgraded with Weapon slot (x1) 39 | -11/Scrapyard | Entered Materials 183 | -10/Materials | Discovered new exit (range 3) 226 | -10/Materials | Discovered new exit (range 15) 305 | -10/Materials | Build established: Mutant 308 | -10/Materials | Reached level 2 330 | -10/Materials | Upgraded with Propulsion slot (x1) 373 | -10/Materials | Discovered new exit (range 9) 486 | -10/Materials | Discovered new exit (range 9) 672 | -10/Materials | Identified exit to Subcaves 672 | -10/Materials | Identified exit to Materials 721 | -10/Materials | Learned Storage emergency access door positions 759 | -10/Materials | Learned location of 3 exits from Materials 787 | -10/Materials | Learned location of 2 exits from Subcaves 805 | -10/Materials | Learned Storage emergency access door positions 833 | -10/Materials | Learned location of 2 exits from Subcaves 872 | -10/Materials | Loaded intel: 12 interactive machine locations 921 | -10/Materials | Learned location of 1 exit from Storage 978 | -10/Materials | Learned Storage terminal intel 1003 | -10/Materials | Entered Mines 1030 | -10/Mines | Reached level 3 1140 | -10/Mines | Met a Derelict shopkeep closing up shop 1164 | -10/Mines | Deemed a non-threat by the Exiles lab entrance 1164 | -10/Mines | Discovered new exit (range 5) 1166 | -10/Mines | Entered Exiles 1175 | -10/Exiles | Met 8R-AWN 1182 | -10/Exiles | Met EX-HEX 1192 | -10/Exiles | Met EX-BIN 1197 | -10/Exiles | Aligned with FarCom system 1197 | -10/Exiles | Given EX-Vault access code 1206 | -10/Exiles | Opened EX-Vault 1215 | -10/Exiles | Warned to stay clear of 0b10 Research branches 1222 | -10/Exiles | Exiles lab attacked by MAIN.C 1230 | -10/Exiles | Learned location of Zion (-6) 1241 | -10/Exiles | Discovered new exit (range 10) 1244 | -10/Exiles | Entered Mines 1282 | -9/Mines | Reached level 4 1351 | -9/Mines | Found a Scrap Suit stashed away for nefarious purposes 1361 | -9/Mines | Assembled infested the area 1423 | -9/Mines | Discovered new exit (range 10) 1430 | -9/Mines | Entered Materials 1431 | -8/Materials | Identified exit to Storage 1432 | -8/Materials | Identified exit to Factory 1432 | -8/Materials | Reached level 5 1539 | -8/Materials | Entered Storage 1540 | -8/Storage | Identified exit to Recycling 1541 | -8/Storage | Reached level 6 1542 | -8/Storage | Loaded intel: 13 terminal locations 1569 | -8/Storage | Used back door to open Recycling access 1571 | -8/Storage | Entered Recycling 1660 | -8/Recycling | Discovered new exit (range 15) 1698 | -8/Recycling | Reached level 7 1796 | -8/Recycling | Scanned before Scraplab entrance 1802 | -8/Recycling | Entered Scraplab 1806 | -8/Recycling | Discovered new exit (range 3) 1807 | -8/Recycling | Entered Scraptown 1835 | -8/Scraptown | Turned away by UFD registrar 1854 | -8/Scraptown | Visited TADAMA 1986 | -8/Scraptown | Visited Shadow of the Wyrm 1998 | -8/Scraptown | Visited SPCMW 2202 | -8/Scraptown | Attacked by Scraptown defenders 2428 | -8/Scraptown | Core integrity fell below 50% 2442 | -8/Scraptown | Core integrity fell below 20% 2448 | -8/Scraptown | Visited Curators Association 2451 | -8/Scraptown | Self-destructed Last Messages --------------- feed the Recyclers. 02202_ Machine disabled. 02202_ ANNOUNCEMENT: Intruder alert! Defend Scraptown! 02304_ ANNOUNCEMENT: Triborg tracking relay activated. Stay clear or you only have yourself to blame! 02319_ 35-WK3(j): "If it isn't public enemy #1: the new Wanderer!" 02341_ Critical hit (Burn: +50). 02424_ 4O-V8O(j): "Murder hobos aren't welcome in Scraptown!" 02433_ M8-2CT(E): "We are one!" 02437_ Machine disabled. 02447_ Upgraded: Core Integrity (+400) 02449_ Enclosure breached. 02449_ Machine disabled. 02450_ L3-DN0(r) follow-up attacks with Ripteeth. 02451_ Aerolev Unit ripped off. Map ----- +----------------------------------------------------+ | ?????????????????????????????????????????????????? | | ?????????????????????????????????????????????????? | | ?????????????????????????????????????????????????? | | ?????????????????????????????????????????????????? | | ?????????????????????????????????????????????????? | | ?????????????????????????????????????????????????? | | ?????????????????????????????????????????????????? | | ?????????????????????????????????????????????????? | | ?????????????????????????????????????????????????? | | ?????????????????????????????????????????????????? | | ?????????????????????????????????????????????????? | | ?????????????????????????????????????????????????? | | ?????????????????????????????????????????????????? | | ???????????????????????????##????????????????????? | | ???????????????????????##?? ####?????????????????? | | ???????????????????????#"## =##????????????????? | | ?????????????????????### "] ##???????????????? | | #????????????????????" "" ????????????????? | | #????????????????????#"" #????????????????? | | #????????????!???????#&" " #????????????????? | | #????????????!??????##"" ""##????????????????? | | #???????????#! ?????#" t "#????????????????? | | #???????????#! ??????#"" ""#?????????????????? | | #???????????#! ??????#!" "&#?????????????????? | | #???????????# ?????##"" ""##????????????????? | | #???????????? ?????#" @ "#????????????????? | | ?????????????# ?????######r######????????????????? | | ##???????##### ########### #######???????????????? | | #???????#"""" """"""""""" """"""""""????????????? | | #???????#" ???????? | | #???????#" ???????? | | #???????#" ???????? | | #???????#" ????????? | | #????####" ????????? | | #????"""" """"""""""""""""""""""""?????????? | | #????"""" """"""""""""""""""""""???????????? | | #????"""" ""###### ##########?????????????? | | #????"""" ""#???? ??????????????????????? | | #????"""" "#?? ??????????????????????? | | ###?#"""" ""#? "" "??????????????????????? | | ""#"#"""" ""# "" ???????????????????????? | | """"#"""" ""# " ??????????????????????? | | ""#######" "" ""???????????????????????? | | ###?????#" "" ""???????????????????????? | | #########" ""# " ??????????????????????? | | "# "" ????????????????????????? | | ""#? "??????????????????????????? | | """" ""#?? ?????????????????????????? | | "??" ""#??????????????????????????????? | | "??" ""####???????????????????????????? | +----------------------------------------------------+ Best States ------------- Heat Dissipation 25 Energy Generation 14 Energy Capacity 160 Matter Stores 300 Matter Capacity 300 Sight Range 16 Robot Scan Range 14 Terrain Scan Density 10 Evasion (%) 62 Recoil Reduction 4 Item Schematics ----------------- None Robot Schematics ------------------ None Fabricated ------------ Nothing Repaired ---------- Nothing Studied --------- None Alien Tech Used ----------------- None Achievements -------------- None Challenges ------------ None RPGLIKE | -11 -10 -10 -10 -9 -8 -8 -8 -8 --------- Run | Yrd Mat Min Exi Min Mat Sto Rec Scr Levels Raised 6 | . 1 1 . 1 1 1 1 . XP Earned 12705 | 3000 2430 750 350 1450 1850 1000 1375 500 XP Spent 1830 | 500 850 . . . . . . 480 Upgrades 12 | 1 3 . . . . . . 8 Propulsion Slot 1 | . 1 . . . . . . . Weapon Slot 1 | 1 . . . . . . . . Core Integrity 8 | . . . . . . . . 8 Mass Support 1 | . 1 . . . . . . . Inventory Capacity 1 | . 1 . . . . . . . Protomatter Created 216 | . 48 . . 71 . . 97 . Integrity Restored 472 | . 119 . . 201 . . 152 . Core 444 | . 106 . . 201 . . 137 . Parts 28 | . 13 . . . . . 15 . Protomatter Decayed 7 | . 7 . . . . . . . Game ------ Seed GravmagArmoredRifle Manual? 0 Play Time 00:26:35 Cumulative 249.6 hours Start 2026.08.30 @ 10:16:30 End 2026.08.30 @ 10:42:09 Sessions 1 Manual Loads 0 Difficulty Rogue Special Mode Winter2019/RPGLIKE Game No. 159 Rogue 159 Adventurer 0 Explorer 0 Win Type - Total 6 Types 2/0/2/1/0/0/0/1/0/0 Lore% 60 Gallery% 74 Achievement% 58 Wizard Run 0 Options --------- Layout 2 ASCII 0 Keyboard 0 Movement Mouse Keybinds 0 Fullscreen 1 Font 32/SmallcapsGlow Map View 50x44 Zoom Use 0% Tactical HUD 1 Map Filters NONE Filters NONE Steam 1 RUN: 80959286-f83e-4f2f-8988-77d37dd1b138